bitfinex-derivatives/quotes_BTCF0:USTF0_20251119
["timestamp","ask_amount","ask_price","bid_price","bid_amount"]
[1763523893483,0.00016307,91964.0,91963.0,0.1520491]
[1763523893685,0.04518307,91964.0,91963.0,0.1520491]
[1763523893886,0.04518307,91964.0,91963.0,0.04323]
[1763523894179,0.00016307,91964.0,91963.0,0.04323]
[1763523894380,0.04518307,91964.0,91963.0,0.04323]
[1763523894780,0.02263307,91964.0,91963.0,0.04323]
[1763523894988,0.04518307,91964.0,91963.0,0.04323]
[1763523899284,0.15400107,91964.0,91963.0,0.04323]
[1763523899690,0.04518307,91964.0,91963.0,0.04323]
[1763523901384,0.00016307,91964.0,91963.0,0.04323]
[1763523901581,3.07e-06,91964.0,91963.0,0.04323]
[1763523901784,0.32580307,91967.0,91966.0,0.04563]
[1763523901991,0.32580307,91967.0,91966.0,0.30875]
[1763523902186,0.40469,91985.0,91984.0,0.04563]
[1763523902387,0.40469,91985.0,91984.0,0.1544243]
[1763523902985,0.40469,91985.0,91984.0,0.04563]
[1763523903185,0.40469,91985.0,91980.0,0.00219803]
[1763523903186,0.1526879,91981.0,91980.0,0.00219803]
[1763523903785,0.1662738,91976.0,91975.0,0.00016307]
[1763523905196,0.19165398,91976.0,91975.0,0.00016307]
[1763523905385,0.04389,91955.0,91954.0,0.10895075]
[1763523905984,0.04389,91955.0,91954.0,0.00012095]
[1763523907192,0.3608,91959.0,91958.0,0.04563]
[1763523907396,0.38623652,91959.0,91958.0,0.04563]
[1763523907789,0.3608,91959.0,91958.0,0.04563]
[1763523909392,0.00016307,91964.0,91963.0,0.04563]
[1763523909801,3.07e-06,91964.0,91963.0,0.04563]
[1763523909989,0.40469,91982.0,91981.0,0.1544279]
[1763523910190,0.43014449,91982.0,91981.0,0.1544279]
[1763523911101,0.43114449,91982.0,91981.0,0.1544279]
[1763523911395,0.38725449,91982.0,91981.0,0.1544279]
[1763523912000,0.43214449,91982.0,91981.0,0.1544279]
[1763523912306,0.04389,91981.0,91980.0,0.00219803]
[1763523912488,0.06934449,91981.0,91980.0,0.00219803]
[1763523913705,0.1526973,91973.0,91972.0,0.00016307]
[1763523913899,0.53895179,91973.0,91972.0,0.00016307]
[1763523914904,0.43014449,91973.0,91972.0,0.00016307]
[1763523915300,0.06934449,91973.0,91972.0,0.04579307]
[1763523916909,0.06934449,91973.0,91972.0,0.00016307]
[1763523917709,0.06934449,91973.0,91972.0,0.02273307]
[1763523918905,0.06934449,91973.0,91972.0,0.00016307]
[1763523919709,0.06934449,91973.0,91972.0,0.02273307]
[1763523919916,0.06934449,91973.0,91972.0,0.04579307]
[1763523920412,0.06934449,91973.0,91972.0,0.00016307]
[1763523920818,0.06934449,91973.0,91972.0,0.02273307]
[1763523921420,0.02545449,91973.0,91972.0,0.04579307]
[1763523921724,0.06935798,91979.0,91978.0,0.04563]
[1763523921924,0.06935796,91979.0,91978.0,0.04563]
[1763523923327,0.06935796,91979.0,91978.0,0.02257]
[1763523923625,0.06935796,91979.0,91978.0,0.04526]
[1763523924616,0.1223691,91989.0,91976.0,0.108803]
[1763523924617,0.03528,91989.0,91988.0,0.04446]
[1763523924822,0.02547194,91989.0,91988.0,0.1532496]
[1763523925017,0.02186307,91991.0,91990.0,0.04665803]
[1763523925219,0.00027172,92006.0,91990.0,0.04665803]
[1763523925220,0.04327172,92006.0,92005.0,0.1532295]
[1763523925418,0.06874063,92006.0,92005.0,0.04446]
[1763523926526,0.04327172,92006.0,92005.0,0.04446]
[1763523927224,0.043,92002.0,92001.0,0.26312]
[1763523927725,0.02245172,92006.0,92005.0,0.04361]
[1763523928022,0.04413172,92006.0,92005.0,0.04361]
[1763523928628,0.04386,92003.0,92002.0,0.152383]
[1763523932429,0.04386,92003.0,92002.0,0.04361]
[1763523932635,0.04386,92001.0,92000.0,0.11097343]
[1763523932836,0.04386,92001.0,92000.0,0.00219803]
[1763523935530,0.1526389,91997.0,91990.0,0.26308]
[1763523935725,0.04386,91982.0,91981.0,0.1087974]
[1763523936029,0.04386,91982.0,91981.0,0.1524074]
[1763523937827,0.02218,91982.0,91981.0,0.1524074]
[1763523938029,0.04386,91989.0,91988.0,0.1523996]
[1763523938229,0.00016307,91991.0,91990.0,0.04580803]
[1763523939538,0.00016307,91991.0,91990.0,0.40660803]
[1763523940636,0.00016307,91991.0,91990.0,0.40760803]
[1763523941538,0.00016307,91991.0,91990.0,0.40860803]
[1763523942037,0.00016307,91991.0,91990.0,0.40760803]
[1763523942338,0.00016307,91991.0,91990.0,0.40860803]
[1763523942525,0.00027172,92006.0,91990.0,0.40860803]
[1763523942526,0.00027172,92006.0,92005.0,0.1523795]
[1763523946629,0.38298,92020.0,92019.0,0.1523629]
[1763523947840,0.3618,92020.0,92019.0,0.1523629]
[1763523948039,0.40466,92040.0,92039.0,0.1523393]
[1763523948441,0.38298,92040.0,92039.0,0.1523393]
[1763523948833,0.02218,92040.0,92039.0,0.1523393]
[1763523949135,0.02318,92040.0,92039.0,0.1523393]
[1763523949841,0.04286,92038.0,92037.0,0.26304]
[1763523950238,0.04186,92038.0,92037.0,0.28495]
[1763523950637,0.04186,92038.0,92037.0,0.30665]
[1763523951539,0.04186,92038.0,92037.0,0.26304]
[1763523951841,0.04386,92031.0,92030.0,0.00016297]
[1763523952037,0.04386,92031.0,92030.0,0.002361]
[1763523960247,0.04386,92031.0,92030.0,0.024871]
[1763523960437,0.04386,92031.0,92030.0,0.046251]
[1763523960637,0.02218,92031.0,92030.0,0.046251]
[1763523960837,0.04364,92031.0,92030.0,0.046251]
[1763523962843,0.04364,92031.0,92030.0,0.002361]
[1763523963237,0.04364,92031.0,92030.0,0.111101]
[1763523963938,0.1523788,92031.0,92030.0,0.002361]
[1763523965037,0.04364,92031.0,92030.0,0.024871]
[1763523965751,0.04364,92031.0,92030.0,0.046251]
[1763523966952,0.40456,92041.0,92040.0,0.1526181]
[1763523967137,0.40456,92041.0,92040.0,0.15481613]
[1763523967138,0.42959775,92041.0,92040.0,0.15481613]
[1763523968649,0.43159775,92041.0,92040.0,0.15481613]
[1763523971650,0.54032465,92041.0,92040.0,0.00219803]
[1763523973848,0.53932465,92041.0,92040.0,0.00319803]
[1763523974054,0.53832465,92041.0,92040.0,0.00419803]
[1763523974346,0.1310388,92031.0,92030.0,0.00016297]
[1763523974549,0.53828997,92031.0,92030.0,0.00016297]
[1763523975356,0.42955117,92031.0,92030.0,0.002361]
[1763523976258,0.42956025,92031.0,92030.0,0.002361]
[1763523977958,0.42956025,92031.0,92030.0,0.046251]
[1763523978162,0.05592,92040.0,92039.0,0.04389]
[1763523978454,0.08165512,92040.0,92039.0,0.04389]
[1763523979256,0.19038322,92040.0,92039.0,0.02251]
[1763523979658,0.19038322,92040.0,92039.0,0.1526193]
[1763523979659,0.06949512,92040.0,92039.0,0.1526193]
[1763523979859,0.08309512,92040.0,92039.0,0.04389]
[1763523980160,0.08309512,92040.0,92039.0,0.02251]
[1763523980759,0.04376,92035.0,92034.0,0.1526241]
[1763523980958,0.06876245,92035.0,92034.0,0.1526241]
[1763523982158,0.04376,92031.0,92030.0,0.046251]
[1763523982356,0.06876245,92031.0,92030.0,0.046251]
[1763523982558,0.06776245,92031.0,92030.0,0.046251]
[1763523982759,0.06777095,92031.0,92030.0,0.046251]
[1763523983262,0.17650975,92031.0,92030.0,0.046251]
[1763523983657,0.53730975,92031.0,92030.0,0.002361]
[1763523985360,0.1087589,92014.0,92007.0,0.30676]
[1763523985559,0.1087589,92014.0,92010.0,0.04607803]
[1763523985560,0.0439,92011.0,92010.0,0.04607803]
[1763523985861,0.0439,92011.0,92010.0,0.15484063]
[1763523986257,0.0439,92011.0,92010.0,0.15484163]
[1763523986863,0.0439,92011.0,92010.0,0.15584163]
[1763523987461,0.0439,92011.0,92010.0,0.00319803]
[1763523988251,0.0439,92011.0,92010.0,0.13298163]
[1763523988851,0.0439,92011.0,92010.0,0.15559163]
[1763523989055,0.04362,92016.0,92015.0,0.04363]
[1763523989252,0.02276268,92020.0,92019.0,0.1523829]
[1763523989468,0.04451535,92020.0,92019.0,0.1523829]
[1763523990757,0.00016268,92020.0,92019.0,0.1523829]
[1763523991068,0.00016268,92020.0,92019.0,0.4153029]
[1763523993161,2.68e-06,92020.0,92019.0,0.4153029]
[1763523993362,0.3608,92031.0,92030.0,0.15237]
[1763523993564,0.3608,92031.0,92030.0,0.15456803]
[1763523993866,0.3608,92040.0,92039.0,0.1523593]
[1763523994369,0.0438916,92046.0,92045.0,0.1523522]
[1763523995168,0.04362,92041.0,92040.0,0.04582803]
[1763523995769,0.1523469,92041.0,92040.0,0.04582803]
[1763523995969,0.1523469,92041.0,92040.0,0.00219803]
[1763523996373,0.1523469,92041.0,92040.0,0.00319803]
[1763523996870,0.1523469,92041.0,92040.0,0.00219803]
[1763523997059,0.04362,92041.0,92040.0,0.04582803]
[1763523997666,0.04362,92041.0,92040.0,0.02321803]
[1763523997974,0.04362,92041.0,92040.0,0.04582803]
[1763523998664,0.40442,92043.0,92042.0,0.04363]
[1763524000669,0.04362,92043.0,92042.0,0.04363]
[1763524001365,0.0002716,92046.0,92045.0,0.04363]
[1763524001973,0.0438916,92046.0,92045.0,0.04363]
[1763524002374,0.0228716,92046.0,92045.0,0.04363]
[1763524002874,0.0438916,92046.0,92045.0,0.04363]
[1763524003663,0.0002716,92046.0,92045.0,0.04363]
[1763524004060,0.0228716,92046.0,92045.0,0.04363]
[1763524005868,0.0002716,92046.0,92045.0,0.04363]
[1763524009480,0.0228716,92046.0,92045.0,0.04363]
[1763524009681,0.0002716,92046.0,92045.0,0.04363]
[1763524010482,0.3608,92070.0,92061.0,0.1523333]
[1763524010682,0.3608,92070.0,92061.0,0.4151733]
[1763524011781,0.3608,92070.0,92060.0,0.00219803]
[1763524011782,0.04362,92061.0,92060.0,0.00219803]
[1763524011979,0.04362,92061.0,92060.0,0.26503803]
[1763524012372,0.04362,92061.0,92060.0,0.39476253]
[1763524012572,0.04362,92061.0,92060.0,0.41737253]
[1763524012774,0.04462,92061.0,92060.0,0.30866803]
[1763524013177,0.04562,92061.0,92060.0,0.30866803]
[1763524022184,0.0246,92061.0,92060.0,0.30866803]
[1763524022385,0.1536527,92053.0,92052.0,0.00016297]
[1763524022580,0.5144527,92053.0,92052.0,0.00016297]
[1763524023280,0.53947443,92053.0,92052.0,0.00016297]
[1763524023881,0.54047443,92053.0,92052.0,0.00016297]
[1763524029191,0.54047443,92053.0,92026.0,0.02331]
[1763524029192,0.04494,92027.0,92026.0,0.02331]
[1763524029394,0.1536913,92021.0,92020.0,0.1538914]
[1763524029598,0.1536913,92021.0,92020.0,0.04733803]
[1763524029893,0.5144913,92021.0,92020.0,0.00219803]
[1763524030288,0.40574,92021.0,92020.0,0.00219803]
[1763524030487,0.40474,92021.0,92020.0,0.04733803]
[1763524031201,0.40474,92021.0,92020.0,0.04833803]
[1763524031597,0.40474,92021.0,92020.0,0.04933803]
[1763524031992,0.40474,92021.0,92020.0,0.04733803]
[1763524033301,0.3608,92021.0,92020.0,0.04733803]
[1763524033497,0.00016297,92030.0,92029.0,0.1538811]
[1763524033704,0.04510297,92030.0,92029.0,0.1538811]
[1763524033897,0.00016297,92030.0,92029.0,0.4166811]
[1763524034101,0.02261297,92030.0,92029.0,0.4166811]
[1763524035495,0.04583564,92030.0,92029.0,0.4166811]
[1763524036597,0.04583564,92030.0,92029.0,0.4176811]
[1763524037400,0.04583564,92030.0,92029.0,0.4166811]
[1763524038105,0.00089564,92030.0,92029.0,0.4302511]
[1763524038295,0.02334564,92030.0,92029.0,0.4302511]
[1763524038492,0.04583564,92030.0,92029.0,0.4302511]
[1763524038702,0.02334564,92030.0,92029.0,0.4302511]
[1763524038897,0.00089564,92030.0,92029.0,0.4302511]
[1763524039096,0.04583564,92030.0,92029.0,0.4302511]
[1763524041311,0.00089564,92030.0,92029.0,0.4302511]
[1763524042111,0.02334564,92030.0,92029.0,0.4302511]
[1763524042308,0.00089564,92030.0,92029.0,0.4302511]
[1763524042806,0.04521564,92030.0,92029.0,0.30794]
[1763524043410,0.02334564,92030.0,92029.0,0.32181]
[1763524044102,0.04521564,92030.0,92029.0,0.32181]
[1763524046105,0.02334564,92030.0,92029.0,0.32181]
[1763524047112,0.04521564,92030.0,92029.0,0.32181]
[1763524048211,0.15395554,92030.0,92029.0,0.30794]
[1763524050111,0.04521564,92030.0,92029.0,0.30794]
[1763524050306,0.15395554,92030.0,92029.0,0.30794]
[1763524053016,0.15395554,92030.0,92029.0,0.2628]
[1763524053815,0.15395554,92030.0,92029.0,0.2847]
[1763524054412,0.15395554,92030.0,92029.0,0.2628]
[1763524054611,0.17896496,92030.0,92029.0,0.2628]
[1763524055104,0.17896474,92030.0,92029.0,0.2628]
[1763524055305,0.10876,92014.0,92013.0,0.1306591]
[1763524055518,0.1522,92014.0,92013.0,0.4147091]
[1763524056122,0.1522,92014.0,92013.0,0.30595]
[1763524057930,0.513,92014.0,92013.0,0.2628]
[1763524058724,0.5380105,92014.0,92013.0,0.2628]
[1763524060915,0.04344,92012.0,92011.0,0.00016297]
[1763524061625,0.06843368,92012.0,92011.0,0.00016297]
[1763524061927,0.04344,92012.0,92011.0,0.00016297]
[1763524062426,0.04344,92007.0,92006.0,0.00027172]
[1763524065622,0.04344,92007.0,92006.0,0.02217172]
[1763524065822,0.04344,92007.0,92006.0,0.04342172]
[1763524066525,0.02134,92007.0,92006.0,0.04342172]
[1763524067121,0.04344,92007.0,92006.0,0.04342172]
[1763524070135,0.02134,92007.0,92006.0,0.04342172]
[1763524070431,0.04344,92007.0,92006.0,0.04342172]
[1763524074335,0.00073267,92010.0,92009.0,0.04315]
[1763524074736,0.04417267,92010.0,92009.0,0.04315]
[1763524077242,0.16660627,92010.0,92009.0,0.04315]
[1763524077637,0.16660627,92010.0,92009.0,0.0219]
[1763524077838,0.16660627,92010.0,92006.0,0.04482172]
[1763524077839,0.1538071,92007.0,92006.0,0.04482172]
[1763524078641,0.04504,92007.0,92006.0,0.04482172]
[1763524078829,0.1538071,92007.0,92006.0,0.00027172]
[1763524079233,0.1538071,92007.0,92006.0,0.04482172]
[1763524079429,0.1538071,92007.0,92006.0,0.00027172]
[1763524079939,0.1538071,92007.0,92006.0,0.04482172]
[1763524081541,0.04504,92007.0,92006.0,0.04482172]
[1763524083939,0.1538071,92007.0,92006.0,0.04482172]
[1763524084542,0.03925,92007.0,92006.0,0.15359002]
[1763524085042,0.03925,92007.0,92006.0,0.04482172]
[1763524085834,0.03925,92007.0,92006.0,0.00027172]
[1763524087448,0.06429288,92007.0,92006.0,0.00027172]
[1763524088041,0.1630177,91998.0,91985.0,0.1087929]
[1763524088241,0.54886058,91998.0,91987.0,0.1087898]
[1763524088748,0.04504,91981.0,91980.0,0.391749]
[1763524088938,0.04504,91981.0,91980.0,0.39394703]
[1763524089337,0.04404,91981.0,91980.0,0.39394703]
[1763524089744,0.04304,91981.0,91980.0,0.39394703]
[1763524089947,0.04304,91981.0,91980.0,0.39594703]
[1763524090248,0.04304,91981.0,91980.0,0.28714803]
[1763524090652,0.04304,91981.0,91971.0,0.00016306]
[1763524090653,0.04504,91972.0,91971.0,0.00016306]
[1763524090839,0.04504,91972.0,91966.0,0.07845371]
[1763524090840,0.1538544,91967.0,91966.0,0.00027184]
[1763524091044,0.1538686,91955.0,91947.0,0.3608]
[1763524091244,0.5146686,91955.0,91947.0,0.3608]
[1763524091451,0.5146686,91955.0,91954.0,0.04467095]
[1763524091842,0.5126686,91955.0,91954.0,0.00012095]
[1763524092045,0.40584,91955.0,91954.0,0.04467095]
[1763524092337,0.3608,91955.0,91954.0,0.04567095]
[1763524092745,0.5136686,91955.0,91954.0,0.00112095]
[1763524094758,0.5136686,91955.0,91954.0,0.00012095]
[1763524094952,0.5136686,91955.0,91954.0,0.00112095]
[1763524095256,0.40484,91955.0,91954.0,0.04567095]
[1763524095441,0.40584,91955.0,91954.0,0.04467095]
[1763524095940,0.40484,91955.0,91954.0,0.04467095]
[1763524096142,0.40584,91955.0,91954.0,0.04467095]
[1763524096548,0.3608,91955.0,91954.0,0.04467095]
[1763524096755,0.3618,91955.0,91954.0,0.04467095]
[1763524096956,0.40684,91955.0,91954.0,0.00012095]
[1763524097348,0.1538793,91946.0,91945.0,0.00016306]
[1763524097556,0.04504,91928.0,91927.0,0.40535]
[1763524097751,0.04504,91928.0,91927.0,0.66823]
[1763524098250,0.02244952,91928.0,91927.0,0.66823]
[1763524098446,7.952e-05,91928.0,91927.0,0.66823]
[1763524098751,7.952e-05,91928.0,91927.0,0.66923]
[1763524099344,7.952e-05,91928.0,91927.0,0.66823]
[1763524101456,0.02244952,91928.0,91927.0,0.66823]
[1763524101855,7.952e-05,91928.0,91927.0,0.66823]
[1763524102056,0.02244952,91928.0,91927.0,0.66823]
[1763524102254,7.952e-05,91928.0,91927.0,0.66823]
[1763524105664,0.04411952,91928.0,91927.0,0.66823]
[1763524107669,0.04411952,91928.0,91927.0,0.30743]
[1763524109761,7.952e-05,91928.0,91927.0,0.30743]
[1763524110055,0.04457952,91928.0,91927.0,0.30743]
[1763524111771,0.1533617,91927.0,91926.0,0.00027196]
[1763524111970,0.1533712,91919.0,91918.0,0.00016316]
[1763524112271,0.1533872,91906.0,91905.0,0.30712]
[1763524112570,0.15350815,91906.0,91905.0,0.30712]
[1763524115164,0.15350815,91906.0,91905.0,0.0227]
[1763524115871,0.0445,91897.0,91896.0,0.0442689]
[1763524119871,0.0445,91897.0,91896.0,0.0574889]
[1763524121084,0.0445,91897.0,91896.0,0.0442689]
[1763524121978,0.0445,91897.0,91896.0,0.0001089]
[1763524123370,0.05542862,91897.0,91896.0,0.0001089]
[1763524123571,0.1534092,91887.0,91886.0,0.02297208]
[1763524123879,0.1534092,91887.0,91861.0,0.04416]
[1763524123880,0.1534388,91862.0,91861.0,0.04416]
[1763524124068,0.1089471,91855.0,91854.0,0.04416]
[1763524124269,0.4053,91855.0,91854.0,0.04416]
[1763524124772,0.40543689,91855.0,91854.0,0.04416]
[1763524125471,0.40543689,91855.0,91854.0,0.0227]
[1763524125670,0.40543689,91855.0,91854.0,0.04416]
[1763524126068,0.0445,91852.0,91851.0,0.28574]
[1763524126464,0.0445,91852.0,91851.0,0.26304]
[1763524127277,0.0445,91847.0,91837.0,0.26304]
[1763524127473,0.4053,91847.0,91837.0,0.26304]
[1763524127680,0.0445,91834.0,91833.0,0.3608]
[1763524127979,0.0445,91834.0,91833.0,0.40496]
[1763524128172,0.0445,91834.0,91833.0,0.04416]
[1763524128574,0.3608,91836.0,91825.0,0.26304]
[1763524128575,0.0445,91826.0,91825.0,0.26304]
[1763524128880,0.0445,91817.0,91816.0,0.04416]
[1763524129087,0.4053,91817.0,91816.0,0.04416]
[1763524130884,0.0445,91817.0,91816.0,0.04416]
[1763524131082,0.02283,91817.0,91816.0,0.04416]
[1763524131280,0.02283,91817.0,91813.0,0.1089958]
[1763524131281,0.04669803,91820.0,91819.0,0.04416]
[1763524132078,0.0001272,91826.0,91825.0,0.1531427]
[1763524132687,0.0446272,91826.0,91825.0,0.04416]
[1763524133186,0.0001272,91826.0,91825.0,0.04416]
[1763524134994,0.0229572,91826.0,91825.0,0.04416]
[1763524135495,0.0446272,91826.0,91825.0,0.04416]
[1763524135690,0.0229572,91826.0,91825.0,0.04416]
[1763524135897,0.0229572,91826.0,91825.0,0.30732]
[1763524136093,0.0446272,91826.0,91825.0,0.30732]
[1763524138189,0.0001272,91826.0,91825.0,0.30732]
[1763524138696,0.0217372,91826.0,91825.0,0.30732]
[1763524138893,0.0442472,91826.0,91825.0,0.30732]
[1763524139198,0.4050472,91826.0,91825.0,0.28586]
[1763524139706,0.04412,91812.0,91811.0,0.40416]
[1763524139995,0.04412,91812.0,91811.0,0.66736]
[1763524141389,0.04424815,91812.0,91811.0,0.2632]
[1763524141589,0.04412,91807.0,91799.0,0.3608]
[1763524141793,0.04412,91807.0,91796.0,0.2632]
[1763524142086,0.04412,91797.0,91796.0,0.28458]
[1763524142291,0.04412,91797.0,91796.0,0.30656]
[1763524142603,0.00016334,91806.0,91805.0,0.1523665]
[1763524142801,0.00016334,91806.0,91805.0,0.4155665]
[1763524143095,0.3608,91828.0,91817.0,0.1523522]
[1763524143289,0.36090061,91818.0,91817.0,0.1523522]
[1763524143702,0.40502061,91818.0,91817.0,0.1523522]
[1763524144093,0.38251061,91818.0,91817.0,0.1523522]
[1763524144400,0.40502061,91818.0,91817.0,0.1523522]
[1763524144896,0.00010061,91818.0,91817.0,0.1523522]
[1763524145089,0.03841759,91855.0,91817.0,0.1523522]
[1763524145090,0.3608,91850.0,91847.0,0.1523166]
[1763524145296,0.40711803,91850.0,91849.0,0.04336]
[1763524145489,0.04412,91837.0,91836.0,0.02138]
[1763524145698,0.04412,91833.0,91832.0,0.3066]
[1763524146089,0.04425741,91833.0,91832.0,0.3066]
[1763524146396,0.04412,91824.0,91823.0,0.04352334]
[1763524147491,0.04412,91824.0,91823.0,0.00016334]
[1763524147690,0.04412,91824.0,91823.0,0.04352334]
[1763524147992,0.38241,91829.0,91828.0,0.04336]
[1763524148192,0.04412,91824.0,91823.0,0.00016334]
[1763524148789,0.04424222,91824.0,91823.0,0.00016334]
[1763524148995,0.04412,91809.0,91808.0,0.3066]
[1763524149196,0.05611612,91809.0,91808.0,0.28462]
[1763524149400,0.04412,91800.0,91799.0,0.04336]
[1763524149701,0.00219803,91800.0,91799.0,0.04336]
[1763524151199,0.02380803,91800.0,91799.0,0.04336]
[1763524151389,0.01503803,91800.0,91791.0,0.3608]
[1763524151593,0.01503803,91800.0,91762.0,0.3608]
[1763524151594,0.04412,91767.0,91762.0,0.3608]
[1763524151801,0.04412,91767.0,91766.0,0.04363243]
[1763524152004,0.40492,91767.0,91766.0,0.04363243]
[1763524152202,0.00010657,91767.0,91766.0,0.04363243]
[1763524152696,0.04422657,91767.0,91766.0,0.04363243]
[1763524152894,0.04422657,91767.0,91766.0,0.00027243]
[1763524153397,0.04412,91747.0,91746.0,0.05685]
[1763524153602,0.00219803,91750.0,91749.0,0.04336]
[1763524153800,0.00016343,91756.0,91755.0,0.04336]
[1763524154104,0.02161,91748.0,91747.0,0.30808]
[1763524154303,0.36096343,91756.0,91739.0,0.3608]
[1763524154304,0.04412,91744.0,91739.0,0.3608]
[1763524154492,0.00219803,91750.0,91710.0,0.14059981]
[1763524154493,0.74321,91741.0,91740.0,0.05685]
[1763524154801,0.7216,91741.0,91740.0,0.05685]
[1763524155003,0.3608,91741.0,91740.0,0.05685]
[1763524155196,0.00010996,91743.0,91742.0,0.04336]
[1763524157301,0.40508343,91756.0,91755.0,0.02138]
[1763524157495,0.02161,91753.0,91752.0,0.05685]
[1763524157804,0.36096343,91756.0,91755.0,0.04336]
[1763524158306,0.36107167,91756.0,91755.0,0.04336]
[1763524159699,0.44614118,91772.0,91755.0,0.04336]
[1763524159700,0.3608,91764.0,91763.0,0.04336]
[1763524160297,0.00219803,91770.0,91769.0,0.04336]
[1763524160694,0.00231089,91770.0,91769.0,0.04336]
[1763524162200,0.04589089,91770.0,91769.0,0.04336]
[1763524162401,0.04610089,91770.0,91769.0,0.04336]
[1763524162605,0.04379,91761.0,91760.0,0.00016343]
[1763524162905,0.02182,91761.0,91760.0,0.31004343]
[1763524163491,0.02182,91761.0,91760.0,0.00016343]
[1763524163498,0.1528487,91761.0,91760.0,0.00016343]
[1763524163699,0.5136487,91761.0,91760.0,0.00016343]
[1763524164704,0.51374688,91761.0,91760.0,0.00016343]
[1763524165498,0.40468818,91761.0,91760.0,0.00016343]
[1763524165706,0.36089818,91761.0,91760.0,0.04504343]
[1763524167906,9.818e-05,91761.0,91760.0,0.04504343]
[1763524168209,0.04278343,91779.0,91778.0,0.1090385]
[1763524168599,0.04278343,91779.0,91778.0,0.4164385]
[1763524168600,0.00016343,91779.0,91778.0,0.4164385]
[1763524168798,0.3608,91798.0,91797.0,0.1514559]
[1763524168994,0.3159,91798.0,91797.0,0.4164559]
[1763524169200,0.3159518,91798.0,91797.0,0.4164559]
[1763524169394,0.31282411,91810.0,91809.0,0.1514417]
[1763524169799,0.30602411,91810.0,91809.0,0.1514417]
[1763524170611,0.02170343,91819.0,91818.0,0.02141]
[1763524171023,0.04278343,91819.0,91818.0,0.02141]
[1763524171306,0.04262,91805.0,91804.0,0.3608]
[1763524171513,0.04262,91805.0,91804.0,0.40324]
[1763524171805,0.04262,91805.0,91804.0,0.38221]
[1763524172713,0.04262,91805.0,91804.0,0.02141]
[1763524173706,0.04262,91805.0,91804.0,0.02241]
[1763524174106,0.04262,91805.0,91804.0,0.001]
[1763524174309,0.04262,91801.0,91800.0,0.00016343]
[1763524174507,0.40342,91801.0,91800.0,0.00016343]
[1763524175413,0.40342,91801.0,91800.0,0.02157343]
[1763524175805,0.40342,91801.0,91800.0,0.15161583]
[1763524176009,0.40342,91801.0,91800.0,0.04260343]
[1763524176010,0.38234,91801.0,91800.0,0.04260343]
[1763524176210,0.40342,91801.0,91800.0,0.02157343]
[1763524176603,0.40442,91801.0,91800.0,0.00016343]
[1763524176805,0.3618,91801.0,91800.0,0.04260343]
[1763524177005,0.001,91801.0,91800.0,0.04260343]
[1763524178315,0.04362,91801.0,91800.0,0.04260343]
[1763524178815,0.001,91801.0,91800.0,0.04260343]
[1763524179017,0.04362,91801.0,91800.0,0.04260343]
[1763524180010,0.001,91801.0,91800.0,0.04260343]
[1763524180817,0.001,91801.0,91800.0,0.40340343]
[1763524181221,0.04262,91814.0,91813.0,0.04244]
[1763524181414,0.3608,91823.0,91813.0,0.1514369]
[1763524181721,0.04262,91814.0,91813.0,0.02141]
[1763524182115,0.04262,91814.0,91813.0,0.04244]
[1763524182513,0.02154,91807.0,91806.0,0.05552]
[1763524182711,0.04262,91807.0,91806.0,0.05552]
[1763524183224,0.03762,91807.0,91806.0,0.05552]
[1763524183809,0.00219803,91810.0,91809.0,0.04244]
[1763524184013,0.38234,91815.0,91814.0,0.04244]
[1763524184209,0.3608,91815.0,91814.0,0.1514358]
[1763524184620,0.00016343,91823.0,91822.0,0.04244]
[1763524184924,0.02170343,91823.0,91822.0,0.04244]
[1763524186129,0.00016343,91823.0,91822.0,0.04244]
[1763524186515,0.02270343,91823.0,91822.0,0.04244]
[1763524186716,0.02370343,91823.0,91822.0,0.04244]
[1763524186916,0.00216343,91823.0,91822.0,0.04244]
[1763524187123,0.00116343,91823.0,91822.0,0.04244]
[1763524187320,0.26196343,91833.0,91832.0,0.04244]
[1763524187521,0.26196343,91833.0,91832.0,0.1514144]
[1763524188015,0.38234,91842.0,91841.0,0.04244]
[1763524188223,0.02154,91842.0,91841.0,0.04244]
[1763524188416,0.04262,91847.0,91846.0,0.04244]
[1763524189821,0.00016333,91851.0,91850.0,0.00146535]
[1763524190011,0.06737516,91851.0,91850.0,0.00146535]
[1763524190414,0.06737516,91851.0,91833.0,0.02141]
[1763524190415,0.04262,91834.0,91833.0,0.02141]
[1763524190612,0.1515932,91833.0,91830.0,0.00219803]
[1763524192322,0.1089905,91819.0,91806.0,0.01308]
[1763524192528,0.1089905,91819.0,91817.0,0.01308]
[1763524192727,0.3608,91818.0,91817.0,0.01308]
[1763524193120,0.1089905,91819.0,91817.0,0.01308]
[1763524194223,0.1099905,91819.0,91817.0,0.01308]
[1763524195424,0.02462362,91818.0,91817.0,0.01308]
[1763524196518,0.02562362,91818.0,91817.0,0.01308]
[1763524196921,0.02562362,91818.0,91817.0,0.03449]
[1763524197122,0.02562362,91818.0,91817.0,0.05552]
[1763524197927,0.02562362,91818.0,91817.0,0.01308]
[1763524198925,0.02562362,91818.0,91817.0,0.03553]
[1763524199226,0.02562362,91818.0,91817.0,0.05698]
[1763524202020,0.03841759,91839.0,91835.0,0.02245]
[1763524202225,0.02476355,91836.0,91835.0,0.0439]
[1763524203623,0.1089756,91831.0,91830.0,0.01369]
[1763524203822,0.1089803,91827.0,91826.0,0.00016333]
[1763524204029,0.13374385,91827.0,91826.0,0.00016333]
[1763524204526,0.02476355,91827.0,91826.0,0.04406333]
[1763524204918,0.00219803,91830.0,91829.0,0.0439]
[1763524205132,0.0269654,91830.0,91829.0,0.0439]
[1763524205333,0.00219803,91830.0,91829.0,0.0439]
[1763524206235,0.00319803,91830.0,91829.0,0.0439]
[1763524207335,0.00419803,91830.0,91829.0,0.0439]
[1763524208333,0.00319803,91830.0,91829.0,0.152878]
[1763524208533,0.1089686,91837.0,91836.0,0.0439]
[1763524208840,0.02477943,91837.0,91836.0,0.0439]
[1763524209135,0.13374793,91837.0,91836.0,0.0439]
[1763524209326,0.02477943,91837.0,91836.0,0.0439]
[1763524209729,0.02577943,91837.0,91836.0,0.0439]
[1763524210625,0.13474793,91837.0,91836.0,0.0439]
[1763524211236,0.13574793,91837.0,91836.0,0.0439]
[1763524211923,0.13574793,91837.0,91830.0,0.01369]
[1763524212130,0.1089756,91831.0,91830.0,0.01588803]
[1763524212434,0.13375503,91831.0,91830.0,0.01588803]